fUSD/lending_fUSD_20251221
["ID","MTS","AMOUNT","RATE_DAILY","PERIOD"]
[399430085,1766345441433,-500.0,0.00014191,2]
[399430086,1766345441442,-1000.0,0.00014191,2]
[399430087,1766345441451,-1000.0,0.00014191,2]
[399430088,1766345441461,-1000.0,0.00014191,2]
[399430089,1766345441470,-1000.0,0.00014191,2]
[399430090,1766345441479,-1000.0,0.00014191,2]
[399430091,1766345441489,-1000.0,0.00014191,2]
[399430092,1766345441498,-1000.0,0.00014191,2]
[399430093,1766345441507,-1000.0,0.00014191,2]
[399430094,1766345441516,-1000.0,0.00014191,2]
[399430095,1766345441525,-936.70587254,0.00014191,2]
[399430096,1766345441534,-1000.0,0.00014191,2]
[399430097,1766345441544,-1000.0,0.00014191,2]
[399430098,1766345441553,-1000.0,0.00014191,2]
[399430099,1766345441562,-1000.0,0.00014191,2]
[399430100,1766345441571,-1000.0,0.00014191,2]
[399430101,1766345441581,-866.15226393,0.00014191,2]
[399430102,1766345441591,-1000.0,0.00014191,2]
[399430103,1766345441599,-803.77125516,0.00014191,2]
[399430104,1766345441610,-322.6107,0.00014212,2]
[399430105,1766345441619,-287.61899177,0.00014212,2]
[399430106,1766345441628,-1757.16,0.00014221,2]
[399430107,1766345441637,-151.0,0.00014313,2]
[399430108,1766345441647,-151.0,0.00014319,2]
[399430109,1766345441657,-10278.21634745,0.0001439,2]
[399430110,1766345441666,-26782.82055288,0.00014477,2]
[399430111,1766345441676,-1757.16,0.00014495,2]
[399430112,1766345441686,-10000.0,0.0001451,2]
[399430113,1766345441695,-500.0,0.00014521,2]
[399430114,1766345441705,-4265.54,0.00014604,2]
[399430115,1766345441715,-942.62870133,0.00014736,2]
[399430116,1766345441724,-500.0,0.00014738,2]
[399430117,1766345441733,-1500.0,0.00014739,2]
[399430118,1766345441742,-1500.0,0.00014739,2]
[399430119,1766345441752,-1500.0,0.00014739,2]
[399430120,1766345441761,-158.72296276,0.00014739,2]
[399430121,1766345441771,-1500.0,0.00014739,2]
[399430122,1766345441781,-1500.0,0.00014739,2]
[399430123,1766345441790,-1500.0,0.00014739,2]
[399430124,1766345441799,-1500.0,0.00014739,2]
[399430125,1766345441809,-1500.0,0.00014739,2]
[399430126,1766345441818,-1500.0,0.00014739,2]
[399430127,1766345441827,-1500.0,0.00014739,2]
[399430128,1766345441835,-1500.0,0.00014739,2]
[399430129,1766345441845,-1500.0,0.00014739,2]
[399430130,1766345441855,-858.60637341,0.00014739,2]
[399430131,1766345441865,-597.40388542,0.00014739,2]
[399430132,1766345441875,-1500.0,0.00014739,2]
[399430133,1766345441884,-1500.0,0.00014739,2]
[399430134,1766345441893,-980.21424336,0.00014739,2]
[399430135,1766345441903,-1503.75804982,0.00014739,2]
[399430136,1766345441912,-1500.0,0.00014739,2]
[399430137,1766345441921,-1500.0,0.00014739,2]
[399430138,1766345441931,-1500.0,0.00014739,2]
[399430139,1766345441940,-1500.0,0.00014739,2]
[399430140,1766345441950,-1757.23190316,0.00014768,2]
[399430141,1766345441960,-200.0,0.00014795,2]
[399430142,1766345441970,-226.46240275,0.000149,2]
[399430143,1766345441979,-5014.92,0.00014999,2]
[399430144,1766345441989,-2040.75911121,0.00015,2]
[399430145,1766345441998,-1344.08769236,0.00015,14]
[399430146,1766345442008,-7944.46519883,0.00015,2]
[399430147,1766345442017,-21352.27553926,0.00015,2]
[399430148,1766345442027,-1154.75497368,0.00015,2]
[399430149,1766345442036,-25859.84987091,0.00015,2]
[399430150,1766345442045,-1464.001,0.00015039,2]
[399430151,1766345442055,-553.63,0.00015068,2]
[399430152,1766345442064,-500.0,0.00015117,2]
[399430153,1766345442073,-782.41597288,0.00015187,2]
[399430154,1766345442083,-397.16543724,0.0001519,2]
[399430155,1766345442092,-6453.0,0.00015236,2]
[399430156,1766345442102,-2129.0,0.0001524,2]
[399430157,1766345442111,-26782.82055288,0.00015285,2]
[399430158,1766345442120,-158.38653664,0.00015287,2]
[399430159,1766345442130,-436.03619538,0.00015287,2]
[399430160,1766345442139,-2000.0,0.00015287,2]
[399430161,1766345442149,-2000.0,0.00015287,2]
[399430162,1766345442158,-666.07222089,0.00015287,2]
[399430163,1766345442167,-2000.0,0.00015287,2]
[399430164,1766345442177,-2000.0,0.00015287,2]
[399430165,1766345442186,-458.37108423,0.00015287,2]
[399430166,1766345442196,-2000.0,0.00015287,2]
[399430167,1766345442205,-1071.82272799,0.00015287,2]
[399430168,1766345442214,-2000.0,0.00015287,2]
[399430169,1766345442224,-629.20788422,0.00015287,2]
[399430170,1766345442234,-1500.98434959,0.00015287,2]
[399430171,1766345442243,-2000.0,0.00015287,2]
[399430172,1766345442253,-1004.443568,0.00015287,2]
[399430174,1766345442262,-889.58800714,0.00015287,2]
[399430175,1766345442275,-2000.0,0.00015287,2]
[399430176,1766345442284,-2000.0,0.00015287,2]
[399430177,1766345442294,-1517.64,0.000153,2]
[399430178,1766345442303,-505.85702931,0.000154,2]
[399430179,1766345442313,-16701.27872054,0.00015556,2]
[399430180,1766345442323,-334.5472959,0.00015581,2]
[399430181,1766345442332,-298.26089446,0.00015581,2]
[399430183,1766345442343,-1158.0,0.00015643,2]
[399430184,1766345442353,-179.77,0.00015695,2]
[399430185,1766345442362,-1000.0,0.000158,2]
[399430186,1766345442371,-2228.99632343,0.00015807,2]
[399430187,1766345442380,-2500.0,0.00015835,2]
[399430188,1766345442390,-2500.0,0.00015835,2]
[399430189,1766345442399,-2500.0,0.00015835,2]
[399430190,1766345442408,-2500.0,0.00015835,2]
[399430191,1766345442418,-2500.0,0.00015835,2]
[399430192,1766345442428,-2500.0,0.00015835,2]
[399430193,1766345442437,-2500.0,0.00015835,2]
[399430194,1766345442446,-2500.0,0.00015835,2]
[399430196,1766345442455,-2500.0,0.00015835,2]
[399430198,1766345442464,-833.7673616,0.00015861,2]
[399430200,1766345442474,-1533.22790124,0.00015944,2]
[399430202,1766345442483,-367.03301354,0.00015944,2]
[399430203,1766345442492,-1158.0,0.00015961,2]
[399430204,1766345442501,-757.15342507,0.0001599,2]
[399430205,1766345442511,-1856.0,0.0001599,2]
[399430206,1766345442519,-151.0,0.00015997,2]
[399430207,1766345442529,-151.0,0.00015997,2]
[399430208,1766345442538,-151.0,0.00015997,2]
[399430209,1766345442547,-23721.69410328,0.00016,2]
[399430210,1766345442557,-2232592.77288859,0.00016,4]
[399430211,1766345442567,-153.350733,0.00016,2]
[399430212,1766345442576,-151.0,0.00016,2]
[399430213,1766345442586,-782.41597286,0.00016044,2]
[399430214,1766345442595,-1856.0,0.00016044,2]
[399430215,1766345442604,-1856.0,0.00016063,2]
[399430216,1766345442614,-833.76736157,0.00016069,2]
[399430217,1766345442623,-26782.82055288,0.00016092,2]
[399430218,1766345442632,-1000.0,0.000161,2]
[399430219,1766345442642,-942.62870133,0.00016127,2]
[399430220,1766345442654,-1068.0,0.00016174,2]
[399430221,1766345442664,-1000.0,0.000162,2]
[399430222,1766345442674,-1000.0,0.000162,2]
[399430223,1766345442683,-1000.0,0.000162,2]
[399430224,1766345442693,-1000.0,0.000162,2]
[399430225,1766345442702,-1068.0,0.00016237,2]
[399430226,1766345442713,-1068.0,0.00016244,2]
[399430227,1766345442723,-833.76736157,0.00016277,2]
[399430228,1766345442732,-1068.0,0.00016292,2]
[399430229,1766345442741,-1856.0,0.000163,2]
[399430230,1766345442751,-1068.0,0.00016318,2]
[399430231,1766345442760,-1856.0,0.00016336,2]
[399430232,1766345442770,-3000.0,0.00016383,2]
[399430233,1766345442779,-1003.160494,0.00016383,2]
[399430234,1766345442788,-2351.34245587,0.00016383,2]
[399430235,1766345442798,-638.30499273,0.00016383,2]
[399430236,1766345442807,-949.44717494,0.00016383,2]
[399430237,1766345442816,-3000.0,0.00016383,2]
[399430238,1766345442826,-587.77987847,0.00016383,2]
[399430240,1766345442836,-3000.0,0.00016383,2]
[399430242,1766345442845,-624.62923411,0.00016383,2]
[399430244,1766345442855,-1068.0,0.00016425,2]
[399430245,1766345442864,-1068.0,0.00016431,2]
[399430246,1766345442874,-500.0,0.00016437,2]
[399430247,1766345442884,-500.0,0.00016437,2]
[399430249,1766345442893,-500.0,0.00016437,2]
[399430251,1766345442902,-500.0,0.00016437,2]
[399430252,1766345442912,-800.0,0.00016438,2]
[399430253,1766345442921,-553.63,0.00016438,2]
[399430254,1766345442931,-1068.0,0.00016445,2]
[399430255,1766345442940,-2000.0,0.00016463,2]
[399430256,1766345442949,-1724.314,0.00016463,2]
[399430257,1766345442959,-500.0,0.00016473,2]
[399430258,1766345442968,-500.0,0.00016473,2]
[399430259,1766345442977,-500.4654119,0.00016473,2]
[399430260,1766345442986,-500.0,0.00016473,2]
[399430261,1766345442995,-570.29356194,0.00016473,2]
[399430262,1766345443005,-500.0,0.00016473,2]
[399430263,1766345443014,-500.0,0.00016473,2]
[399430264,1766345443024,-500.0,0.00016473,2]
[399430265,1766345443033,-500.0,0.00016473,2]
[399430266,1766345443042,-517.55500559,0.00016473,2]
[399430267,1766345443052,-500.0,0.00016473,2]
[399430268,1766345443061,-500.0,0.00016473,2]
[399430269,1766345443070,-500.0,0.00016473,2]
[399430270,1766345443080,-248.8938967,0.00016473,2]
[399430271,1766345443089,-500.0,0.00016473,2]
[399430272,1766345443098,-500.0,0.00016473,2]
[399430273,1766345443108,-500.0,0.00016473,2]
[399430274,1766345443117,-500.0,0.00016473,2]
[399430275,1766345443126,-162.38378184,0.00016473,2]
[399430276,1766345443137,-500.0,0.00016473,2]
[399430277,1766345443147,-500.0,0.00016473,2]
[399430278,1766345443156,-518.86476464,0.00016473,2]
[399430279,1766345443165,-500.0,0.00016473,2]
[399430280,1766345443174,-500.0,0.00016473,2]
[399430281,1766345443185,-500.0,0.00016473,2]
[399430282,1766345443194,-334.60508476,0.00016473,2]
[399430283,1766345443203,-500.0,0.00016473,2]
[399430284,1766345443213,-500.0,0.00016473,2]
[399430285,1766345443223,-500.0,0.00016473,2]
[399430286,1766345443232,-160.18740865,0.00016473,2]
[399430287,1766345443244,-160.18741035,0.00016473,2]
[399430288,1766345443254,-160.18818998,0.00016473,2]
[399430289,1766345443263,-500.0,0.00016473,2]
[399430290,1766345443276,-507.35959286,0.00016473,2]
[399430291,1766345443287,-639.72398952,0.00016473,2]
[399430292,1766345443296,-500.51801303,0.00016473,2]
[399430293,1766345443306,-500.0,0.00016473,2]
[399430294,1766345443317,-500.0,0.00016473,2]
[399430295,1766345443327,-160.18740865,0.00016473,2]
[399430296,1766345443336,-500.52093975,0.00016473,2]
[399430297,1766345443350,-160.18740865,0.00016473,2]
[399430298,1766345443359,-156.55034948,0.00016473,2]
[399430299,1766345443368,-160.18477965,0.00016473,2]
[399430300,1766345443377,-500.0,0.00016473,2]
[399430301,1766345443386,-150.17482874,0.00016473,2]
[399430302,1766345443396,-500.0,0.00016473,2]
[399430303,1766345443406,-500.0,0.00016473,2]
[399430304,1766345443417,-500.0,0.00016473,2]
[399430305,1766345443427,-500.0,0.00016473,2]
[399430306,1766345443437,-500.0,0.00016473,2]
[399430307,1766345443446,-500.0,0.00016473,2]
[399430308,1766345443456,-500.0,0.00016473,2]
[399430309,1766345443466,-576.10062402,0.00016473,2]
[399430310,1766345443475,-500.0,0.00016473,2]
[399430311,1766345443486,-500.0,0.00016473,2]
[399430312,1766345443495,-555.97636192,0.00016473,2]
[399430313,1766345443506,-500.0,0.00016473,2]
[399430314,1766345443516,-500.67170266,0.00016473,2]
[399430315,1766345443527,-500.0,0.00016473,2]
[399430316,1766345443537,-500.0,0.00016473,2]
[399430317,1766345443546,-500.0,0.00016473,2]
[399430318,1766345443555,-164.83274193,0.00016473,2]
[399430319,1766345443565,-500.0,0.00016473,2]
[399430320,1766345443575,-500.0,0.00016473,2]
[399430321,1766345443584,-509.1899532,0.00016473,2]
[399430322,1766345443594,-500.0,0.00016473,2]
[399430323,1766345443603,-500.0,0.00016473,2]
[399430324,1766345443612,-530.05316157,0.00016473,2]
[399430325,1766345443622,-500.0,0.00016473,2]
[399430326,1766345443632,-500.0,0.00016473,2]
[399430327,1766345443641,-207.48820699,0.00016473,2]
[399430328,1766345443650,-506.25214638,0.00016473,2]
[399430329,1766345443659,-833.76736157,0.00016484,2]
[399430330,1766345443669,-572.0,0.00016545,2]
[399430331,1766345443678,-1500.0,0.00016615,2]
[399430332,1766345443688,-1501.25804602,0.0001666,2]
[399430333,1766345443698,-833.76736157,0.00016692,2]
[399430334,1766345443709,-164.5,0.00016712,2]
[399430335,1766345443719,-198.9491487,0.00016748,2]
[399430336,1766345443728,-5452.0,0.00016759,2]
[399430337,1766345443738,-967.0,0.00016763,2]
[399430338,1766345443747,-3790.35999614,0.000168,2]
[399430339,1766345443757,-500.0,0.00016815,2]
[399430340,1766345443766,-500.0,0.00016815,2]
[399430341,1766345443776,-500.0,0.00016815,2]
[399430342,1766345443786,-500.0,0.00016815,2]
[399430343,1766345443796,-151.0,0.00016816,2]
[399430344,1766345443806,-151.0,0.00016816,2]
[399430345,1766345443815,-151.0,0.00016816,2]
[399430346,1766345443825,-151.0,0.00016816,2]
[399430347,1766345443834,-293.018097,0.00016816,2]
[399430348,1766345443843,-293.018097,0.00016816,2]
[399430349,1766345443853,-293.018097,0.00016816,2]
[399430350,1766345443862,-293.018097,0.00016816,2]
[399430351,1766345443872,-151.0,0.00016816,2]
[399430352,1766345443881,-151.0,0.00016816,2]
[399430353,1766345443890,-151.0,0.00016816,2]
[399430354,1766345443899,-151.0,0.00016816,2]
[399430355,1766345443910,-7000.0,0.0001683,2]
[399430356,1766345443918,-200.0,0.00016863,2]
[399430357,1766345443927,-200.0,0.00016864,2]
[399430358,1766345443939,-200.0,0.00016864,2]
[399430359,1766345443948,-10000.0,0.000169,2]
[399430360,1766345443957,-782.41597286,0.000169,2]
[399430361,1766345443966,-26782.82055288,0.000169,2]
[399430362,1766345443975,-833.76736157,0.000169,2]
[399430363,1766345443984,-7921.0,0.000169,2]
[399430364,1766345443994,-1533.22790123,0.00016922,2]
[399430365,1766345444003,-367.03301352,0.00016922,2]
[399430366,1766345444013,-279.0,0.00016926,2]
[399430367,1766345444023,-3500.0,0.00016931,2]
[399430368,1766345444032,-1954.77156402,0.00016931,2]
[399430369,1766345444041,-3500.0,0.00016931,2]
[399430370,1766345444050,-346.92554585,0.0001695,2]
[399430371,1766345444059,-309.29654756,0.0001695,2]
[399430372,1766345444069,-7000.0,0.0001695,2]
[399430373,1766345444079,-219.80510971,0.00016973,2]
[399430374,1766345444090,-500.0,0.00016986,2]
[399430375,1766345444099,-757.15342507,0.0001699,2]
[399430376,1766345444108,-151.0,0.00016997,2]
[399430377,1766345444117,-500.0,0.00016999,2]
[399430378,1766345444126,-500.0,0.00016999,2]
[399430379,1766345444135,-248.57957861,0.00016999,2]
[399430380,1766345444144,-300.0,0.00016999,2]
[399430381,1766345444154,-666.0,0.00016999,2]
[399430382,1766345444162,-2014.45964951,0.00016999,2]
[399430383,1766345444171,-1556131.1506397,0.00017,2]
[399430384,1766345444860,-576.55739814,0.00017,2]
[399430385,1766345444871,-2041.02769881,0.00017,2]
[399430386,1766345444882,-1043.35,0.00017,2]
[399430387,1766345444932,-151.0,0.00014113,2]
[399430388,1766345444941,-17694.8268315,0.00017,2]
[399430389,1766345444951,-1545668.62681797,0.00017,2]
[399430390,1766345444962,-298.51436949,0.00017,2]
[399430391,1766345444973,-480.4846,0.00017,2]
[399430392,1766345444983,-3280.84999999,0.00017,2]
[399430393,1766345444994,-265.96,0.00017,2]
[399430394,1766345445005,-1518.12334425,0.00017,2]
[399430395,1766345445052,-6008.90567417,0.00017,2]
[399430396,1766345445065,-25051.29371914,0.00017,2]
[399430397,1766345445076,-820.95209632,0.00017,2]
[399430398,1766345445087,-5117.16678072,0.00017,2]
[399430399,1766345445098,-60946.93440316,0.00017,2]
[399430400,1766345445109,-7028.84508125,0.00017,2]
[399430404,1766345445757,-1.7e-07,0.00017,2]
[399430405,1766345445768,-90138.42393929,0.00017,2]
[399430406,1766345445779,-907.96447581,0.00017,2]
[399430407,1766345445790,-3689.52,0.00017,2]
[399430409,1766345445867,-784.01746867,0.00011099,2]
[399430410,1766345445879,-465.08686962,0.00011099,2]
[399430411,1766345446031,-3048.42894713,0.00011099,2]
[399430412,1766345446058,-209.741393,8.694e-05,2]
[399430413,1766345446068,-13495.68383925,0.00011099,2]
[399430414,1766345446077,-1355.7024448,0.00013814,2]
[399430415,1766345446086,-7951.60224438,0.00017,2]
[399430416,1766345446220,-10264.48088164,0.00011099,2]
[399430417,1766345446236,-503.26943875,0.00011099,2]
[399430418,1766345446256,-411.999998,0.00011099,2]
[399430419,1766345446276,-6613.46680628,0.00011099,2]
[399430420,1766345446289,-29998.59747156,0.00017,2]
[399430421,1766345446306,-6652.16,0.00017,2]
[399430422,1766345446330,-2074.74606667,0.00017,2]
[399430423,1766345446349,-16382.54989279,0.00017,2]
[399430424,1766345446364,-366.13466738,0.00017,2]
[399430425,1766345446393,-2769.54222798,0.00017,2]
[399430426,1766345446411,-13270.65175904,0.00017,2]
[399430427,1766345446428,-10759.09401379,0.00017,2]
[399430428,1766345446444,-4277.3454413,0.00017,2]
[399430429,1766345446461,-1004.86603967,0.00017,2]
[399430433,1766345473720,-345.63737711,7.945e-05,2]
[399430449,1766345525064,500.0,0.00035616,30]
[399430450,1766345525667,500.0,0.00035616,30]
[399430451,1766345526259,500.0,0.00035616,30]
[399430452,1766345526892,500.0,0.00035616,30]
[399430453,1766345526925,500.0,0.00035616,30]
[399430454,1766345530442,200.0,0.00035616,30]
[399430455,1766345531664,200.0,0.00035616,30]
[399430456,1766345532300,200.0,0.00035616,30]
[399430457,1766345535027,200.0,0.00035616,30]
[399430458,1766345538242,500.0,0.00035616,30]
[399430459,1766345538856,275.47469505,0.00035616,30]
[399430460,1766345545765,1500.0,0.00035564,30]
[399430461,1766345550400,1500.0,0.00035564,40]
[399430464,1766345556704,1500.0,0.00035564,30]
[399430465,1766345560842,1500.0,0.00035564,40]
[399430466,1766345564626,994.0,0.0003561,30]
[399430467,1766345564659,-3457.53257711,7.945e-05,2]
[399430468,1766345564684,-3084.94484578,7.945e-05,2]
[399430469,1766345566296,-172.572664,7.945e-05,2]
[399430470,1766345566322,-248.9730105,8.023e-05,2]
[399430471,1766345567637,1500.0,0.00035564,30]
[399430472,1766345572171,1500.0,0.00035564,40]
[399430473,1766345579159,1500.0,0.00035564,30]
[399430474,1766345583230,1500.0,0.00035564,40]
[399430475,1766345585306,-150.0,8.022e-05,2]
[399430476,1766345585367,-9700.01,8.023e-05,2]
[399430477,1766345589887,1500.0,0.00035564,30]
[399430478,1766345593928,1500.0,0.00035564,40]
[399430479,1766345600608,1500.0,0.00035564,30]
[399430480,1766345604663,1500.0,0.00035564,40]
[399430481,1766345611376,1500.0,0.00035564,30]
[399430482,1766345615821,1500.0,0.00035564,40]
[399430483,1766345618635,-1200.0,8.022e-05,2]
[399430484,1766345618670,-7600.01,8.023e-05,2]
[399430485,1766345622434,1500.0,0.00035564,30]
[399430486,1766345625346,465.0,0.0003561,30]
[399430487,1766345626509,1500.0,0.00035564,40]
[399430488,1766345631282,525.0,0.00035,30]
[399430489,1766345632876,210.0,0.0003488,30]
[399430490,1766345633140,1500.0,0.00035564,30]
[399430491,1766345633184,210.0,0.0003286,30]
[399430494,1766345637187,1500.0,0.00035564,40]
[399430498,1766345643939,1500.0,0.00035564,30]
[399430500,1766345648571,1500.0,0.00035564,40]
[399430502,1766345655771,1500.0,0.00035564,30]
[399430503,1766345659796,1500.0,0.00035564,40]
[399430504,1766345667101,1500.0,0.00035564,30]
[399430505,1766345671610,1500.0,0.00035564,40]
[399430506,1766345678324,1500.0,0.00035564,30]
[399430507,1766345682406,1500.0,0.00035564,40]
[399430508,1766345690360,624.71763004,0.00035564,30]
[399430552,1766345815759,500.0,0.00035581,30]
[399430556,1766345828713,151.0,0.00035616,30]
[399430557,1766345829394,151.0,0.00035616,30]
[399430559,1766345830443,151.0,0.00035616,30]
[399430560,1766345830684,151.0,0.00035616,30]
[399430563,1766345838469,500.0,0.00035616,30]
[399430564,1766345839077,500.0,0.00035616,30]
[399430565,1766345839713,500.0,0.00035616,30]
[399430566,1766345840338,500.0,0.00035616,30]
[399430567,1766345841434,500.0,0.00035616,30]
[399430568,1766345842564,500.0,0.00035616,30]
[399430657,1766346041308,-150.0,8.021e-05,2]
[399430658,1766346041340,-1200.0,8.021e-05,2]
[399430659,1766346041374,-300.0,8.021e-05,2]
[399430660,1766346041402,-300.0,8.021e-05,2]
[399430661,1766346041431,-217.0,8.021e-05,2]
[399430662,1766346041460,-500.0,8.022e-05,2]
[399430663,1766346041490,-500.0,8.022e-05,2]
[399430664,1766346041518,-582.42012376,8.022e-05,2]
[399430665,1766346041545,-502.13274033,8.022e-05,2]
[399430666,1766346041572,-476.3076972,8.022e-05,2]
[399430667,1766346041608,-256.94062586,8.022e-05,2]
[399430668,1766346041775,-30.4076257,8.022e-05,2]
[399430669,1766346041824,-500.0,8.022e-05,2]
[399430670,1766346041857,-500.0,8.022e-05,2]
[399430671,1766346041888,-500.0,8.022e-05,2]
[399430672,1766346041919,-500.0,8.022e-05,2]
[399430673,1766346041951,-500.0,8.022e-05,2]
[399430674,1766346041982,-500.0,8.022e-05,2]
[399430675,1766346042013,-500.0,8.022e-05,2]
[399430676,1766346042044,-500.0,8.022e-05,2]
[399430677,1766346042074,-500.0,8.022e-05,2]
[399430678,1766346042108,-500.0,8.022e-05,2]
[399430679,1766346042186,-182.34796988,8.022e-05,2]
[399430680,1766346042292,-0.01,8.022e-05,2]
[399430681,1766346044913,-317.64203012,8.022e-05,2]
[399430682,1766346044939,-93.50602621,8.022e-05,2]
[399430683,1766346047038,-342.9528579,8.022e-05,2]
[399430684,1766346050949,-63.54111589,8.022e-05,2]
[399430685,1766346050974,-233.89493843,8.022e-05,2]
[399430686,1766346052987,-266.10506157,8.022e-05,2]
[399430687,1766346053016,-117.89439418,8.022e-05,2]
[399430688,1766346053429,-382.10560582,8.022e-05,2]
[399430689,1766346053462,-500.0,8.022e-05,2]
[399430690,1766346053822,-500.0,8.022e-05,2]
[399430691,1766346053869,-500.0,8.022e-05,2]
[399430692,1766346053909,-500.0,8.022e-05,2]
[399430693,1766346053943,-500.0,8.022e-05,2]
[399430694,1766346053979,-500.0,8.022e-05,2]
[399430695,1766346054031,-500.0,8.022e-05,2]
[399430696,1766346054065,-500.0,8.022e-05,2]
[399430697,1766346054104,-500.0,8.022e-05,2]
[399430698,1766346054292,-235.79878836,8.022e-05,2]
[399430699,1766346056898,-208.88140583,8.022e-05,2]
[399430701,1766346058402,-55.31980581,8.022e-05,2]
[399430702,1766346058428,-144.12351342,8.022e-05,2]
[399430705,1766346062253,-251.80995595,8.021e-05,2]
[399430706,1766346063734,-48.19004405,8.021e-05,2]
[399430707,1766346063760,-278.3762011,8.022e-05,2]
[399430708,1766346065652,-77.50028548,8.022e-05,2]
[399430709,1766346065677,-222.49971452,8.022e-05,2]
[399430710,1766346067650,-277.50028548,8.022e-05,2]
[399430711,1766346067677,-22.49971452,8.022e-05,2]
[399430712,1766346070964,-204.49540282,8.022e-05,2]
[399430713,1766346073342,-152.87596359,8.022e-05,2]
[399430714,1766346074826,-120.12891907,8.022e-05,2]
[399430715,1766346074861,-500.0,8.022e-05,2]
[399430716,1766346074895,-500.0,8.022e-05,2]
[399430717,1766346074928,-500.0,8.022e-05,2]
[399430718,1766346074961,-500.0,8.022e-05,2]
[399430719,1766346074993,-500.0,8.022e-05,2]
[399430720,1766346075028,-500.0,8.022e-05,2]
[399430721,1766346075061,-500.0,8.022e-05,2]
[399430722,1766346075094,-500.0,8.022e-05,2]
[399430723,1766346075125,-500.0,8.022e-05,2]
[399430724,1766346075159,-259.75216186,8.022e-05,2]
[399430725,1766346075311,-240.24783814,8.022e-05,2]
[399430726,1766346076190,-174.81199944,8.022e-05,2]
[399430727,1766346078799,-227.11927634,8.022e-05,2]
[399430728,1766346082419,-98.06872422,8.022e-05,2]
[399430729,1766346082452,-316.52783228,8.022e-05,2]
[399430731,1766346085337,-183.47216772,8.022e-05,2]
[399430732,1766346085369,-12.94991424,8.022e-05,2]
[399430733,1766346088315,-216.19240501,8.022e-05,2]
[399430734,1766346090510,-223.13593148,8.022e-05,2]
[399430735,1766346093765,-47.72174927,8.022e-05,2]
[399430736,1766346093794,-328.85283733,8.022e-05,2]
[399430737,1766346096821,-171.14716267,8.022e-05,2]
[399430738,1766346096846,-126.26245421,8.022e-05,2]
[399430739,1766346098482,-104.88428156,8.022e-05,2]
[399430740,1766346098509,-173.66265347,8.022e-05,2]
[399430741,1766346099586,-531.64721389,8.022e-05,2]
[399430742,1766346099618,-705.30986736,8.022e-05,2]
[399430743,1766346099649,-705.30986736,8.022e-05,2]
[399430744,1766346099680,-705.30986736,8.022e-05,2]
[399430745,1766346099714,-705.30986736,8.022e-05,2]
[399430746,1766346099745,-705.30986736,8.022e-05,2]
[399430747,1766346099776,-705.30986736,8.022e-05,2]
[399430748,1766346099905,-472.9971639,8.022e-05,2]
[399430749,1766346100099,-232.31270346,8.022e-05,2]
[399430750,1766346100124,-7.39203354,8.022e-05,2]
[399430751,1766346101568,-159.41244379,8.022e-05,2]
[399430752,1766346104373,-263.16667018,8.022e-05,2]
[399430754,1766346109405,-275.33871985,8.022e-05,2]
[399430755,1766346109431,-24.66128015,8.022e-05,2]
[399430756,1766346111447,-208.20535564,8.022e-05,2]
[399430757,1766346114025,-187.58919864,8.022e-05,2]
[399430758,1766346116175,-204.86205764,8.022e-05,2]
[399430759,1766346117605,-79.99197529,8.022e-05,2]
[399430760,1766346117632,-90.88638747,8.022e-05,2]
[399430763,1766346119135,-200.09968494,8.022e-05,2]
[399430764,1766346120904,-414.32379495,8.022e-05,2]
[399430765,1766346120937,-705.30986736,8.022e-05,2]
[399430766,1766346120970,-705.30986736,8.022e-05,2]
[399430767,1766346121002,-705.30986736,8.022e-05,2]
[399430768,1766346121034,-705.30986736,8.022e-05,2]
[399430769,1766346121066,-705.30986736,8.022e-05,2]
[399430770,1766346121098,-705.30986736,8.022e-05,2]